fUSD/lending_fUSD_20240814
["ID","MTS","AMOUNT","RATE_DAILY","PERIOD"]
[334818869,1723603917043,-1274.4,0.00015068,2]
[334818870,1723603917052,-1238.0,0.00015068,2]
[334818871,1723603917061,-500.0,0.00015068,2]
[334818872,1723603917072,-500.0,0.00015068,2]
[334818873,1723603917081,-500.0,0.00015068,2]
[334818874,1723603917090,-3131.44,0.00015068,2]
[334818875,1723603917100,-500.0,0.00015068,2]
[334818876,1723603917109,-2308.42,0.00015068,2]
[334818877,1723603917118,-3908.47,0.00015068,2]
[334818878,1723603917128,-500.0,0.00015068,2]
[334818879,1723603917137,-2319.06,0.00015068,2]
[334818880,1723603917146,-1013.41,0.00015068,2]
[334818881,1723603917155,-322.59408417,0.00015068,2]
[334818882,1723603917164,-500.0,0.00015068,2]
[334818883,1723603917173,-543.97,0.00015068,2]
[334818884,1723603917182,-500.0,0.00015068,2]
[334818885,1723603917191,-500.0,0.00015068,2]
[334818886,1723603917200,-611.41,0.00015068,2]
[334818887,1723603917210,-4269.05,0.00015068,2]
[334818888,1723603917219,-4275.05,0.00015068,2]
[334818889,1723603917228,-1143.12,0.00015068,2]
[334818890,1723603917237,-4663.28,0.00015068,2]
[334818891,1723603917246,-1116.18,0.00015068,2]
[334818892,1723603917255,-1963.14,0.00015068,2]
[334818893,1723603917358,-500.0,0.00015068,2]
[334818894,1723603917367,-555.71493854,0.00015068,2]
[334818895,1723603917376,-500.0,0.00015068,2]
[334818896,1723603917385,-500.0,0.00015068,2]
[334818897,1723603917395,-513.84,0.00015068,2]
[334818898,1723603917405,-500.0,0.00015068,2]
[334818899,1723603917414,-5039.17,0.00015068,2]
[334818900,1723603917423,-563.85,0.00015068,2]
[334818901,1723603917433,-1042.63,0.00015068,2]
[334818902,1723603917442,-500.0,0.00015068,2]
[334818903,1723603917451,-500.0,0.00015068,2]
[334818904,1723603917460,-500.0,0.00015068,2]
[334818905,1723603917469,-2211.11,0.00015068,2]
[334818906,1723603917479,-886.37,0.00015068,2]
[334818907,1723603917488,-500.0,0.00015068,2]
[334818908,1723603917497,-871.5,0.00015068,2]
[334818909,1723603917506,-500.0,0.00015068,2]
[334818910,1723603917516,-500.0,0.00015068,2]
[334818911,1723603917525,-1663.19,0.00015068,2]
[334818912,1723603917534,-500.0,0.00015068,2]
[334818913,1723603917543,-5519.37,0.00015068,2]
[334818914,1723603917553,-173.02218321,0.00015068,2]
[334818915,1723603917562,-151.0,0.00015068,2]
[334818916,1723603917571,-151.0,0.00015068,2]
[334818917,1723603917580,-548.95,0.00015068,2]
[334818918,1723603917590,-1172.03,0.00015068,2]
[334818919,1723603917599,-500.0,0.00015068,2]
[334818920,1723603917609,-500.0,0.00015068,2]
[334818921,1723603917618,-500.0,0.00015068,2]
[334818922,1723603917627,-500.0,0.00015068,2]
[334818923,1723603917636,-1026.14,0.00015068,2]
[334818924,1723603917646,-2558.78,0.00015068,2]
[334818925,1723603917656,-6089.56,0.00015068,2]
[334818926,1723603917665,-500.0,0.00015068,2]
[334818927,1723603917674,-721.59,0.00015068,2]
[334818928,1723603917683,-652.17,0.00015068,2]
[334818929,1723603917692,-1052.72,0.00015068,2]
[334818930,1723603917702,-500.0,0.00015068,2]
[334818931,1723603917711,-500.0,0.00015068,2]
[334818932,1723603917721,-500.0,0.00015068,2]
[334818933,1723603917730,-1637.63,0.00015068,2]
[334818934,1723603917740,-541.96,0.00015068,2]
[334818935,1723603917750,-3044.5,0.00015068,2]
[334818936,1723603917761,-2262.05,0.00015068,2]
[334818937,1723603917770,-500.0,0.00015068,2]
[334818938,1723603917779,-500.0,0.00015068,2]
[334818939,1723603917789,-4734.54,0.00015068,2]
[334818940,1723603917798,-6651.45,0.00015068,2]
[334818941,1723603917807,-1697.19,0.00015068,2]
[334818942,1723603917816,-500.0,0.00015068,2]
[334818943,1723603917825,-500.0,0.00015068,2]
[334818944,1723603917834,-500.0,0.00015068,2]
[334818945,1723603917844,-2800.16,0.00015068,2]
[334818946,1723603917854,-500.0,0.00015068,2]
[334818947,1723603917864,-1932.52,0.00015068,2]
[334818948,1723603917873,-500.0,0.00015068,2]
[334818949,1723603917883,-500.0,0.00015068,2]
[334818950,1723603917893,-3412.59,0.00015068,2]
[334818951,1723603917902,-1562.52,0.00015068,2]
[334818952,1723603917911,-500.0,0.00015068,2]
[334818953,1723603917922,-1904.81,0.00015068,2]
[334818954,1723603917931,-3403.14,0.00015068,2]
[334818955,1723603917941,-639.92393102,0.00015068,2]
[334818956,1723603917950,-6160.63,0.00015068,2]
[334818957,1723603917960,-992.23,0.00015068,2]
[334818958,1723603917970,-557.37,0.00015068,2]
[334818959,1723603917979,-500.0,0.00015068,2]
[334818960,1723603917988,-500.0,0.00015068,2]
[334818961,1723603917997,-500.0,0.00015068,2]
[334818962,1723603918007,-1080.99,0.00015068,2]
[334818963,1723603918015,-500.0,0.00015068,2]
[334818964,1723603918024,-500.0,0.00015068,2]
[334818965,1723603918033,-500.0,0.00015068,2]
[334818966,1723603918045,-3809.18,0.00015068,2]
[334818967,1723603918054,-500.0,0.00015068,2]
[334818968,1723603918063,-519.68,0.00015068,2]
[334818969,1723603918072,-500.0,0.00015068,2]
[334818970,1723603918081,-500.0,0.00015068,2]
[334818971,1723603918090,-500.0,0.00015068,2]
[334818972,1723603918099,-3420.81,0.00015068,2]
[334818973,1723603918109,-2546.25,0.00015068,2]
[334818974,1723603918118,-500.0,0.00015068,2]
[334818975,1723603918127,-3109.12,0.00015068,2]
[334818976,1723603918136,-610.77,0.00015068,2]
[334818977,1723603918146,-500.0,0.00015068,2]
[334818978,1723603918155,-500.0,0.00015068,2]
[334818979,1723603918164,-2747.79,0.00015068,2]
[334818980,1723603918173,-1627.16,0.00015068,2]
[334818981,1723603918183,-500.0,0.00015068,2]
[334818982,1723603918193,-500.0,0.00015068,2]
[334818983,1723603918203,-500.0,0.00015068,2]
[334818984,1723603918214,-925.42,0.00015068,2]
[334818985,1723603918224,-500.0,0.00015068,2]
[334818986,1723603918234,-1362.27,0.00015068,2]
[334818987,1723603918244,-737.98,0.00015068,2]
[334818988,1723603918254,-500.0,0.00015068,2]
[334818989,1723603918264,-1014.28,0.00015068,2]
[334818990,1723603918273,-510.51711796,0.00015068,2]
[334818991,1723603918282,-1635.4,0.00015068,2]
[334818992,1723603918292,-500.0,0.00015068,2]
[334818993,1723603918301,-500.0,0.00015068,2]
[334818994,1723603918311,-1754.72,0.00015068,2]
[334818995,1723603918321,-500.0,0.00015068,2]
[334818996,1723603918330,-500.0,0.00015068,2]
[334818997,1723603918340,-500.0,0.00015068,2]
[334818998,1723603918350,-500.0,0.00015068,2]
[334818999,1723603918360,-684.39,0.00015068,2]
[334819000,1723603918370,-2042.47,0.00015068,2]
[334819001,1723603918380,-500.0,0.00015068,2]
[334819002,1723603918390,-500.0,0.00015068,2]
[334819003,1723603918399,-2970.97,0.00015068,2]
[334819004,1723603918410,-500.0,0.00015068,2]
[334819005,1723603918420,-500.0,0.00015068,2]
[334819006,1723603918430,-500.0,0.00015068,2]
[334819007,1723603918439,-1135.15,0.00015068,2]
[334819008,1723603918449,-759.05,0.00015068,2]
[334819009,1723603918458,-578.01,0.00015068,2]
[334819010,1723603918467,-541.34,0.00015068,2]
[334819011,1723603918477,-542.71,0.00015068,2]
[334819012,1723603918487,-500.0,0.00015068,2]
[334819013,1723603918496,-4312.18,0.00015068,2]
[334819014,1723603918505,-500.0,0.00015068,2]
[334819015,1723603918515,-993.05,0.00015068,2]
[334819016,1723603918525,-500.0,0.00015068,2]
[334819017,1723603918535,-1593.35,0.00015068,2]
[334819018,1723603918546,-500.0,0.00015068,2]
[334819019,1723603918557,-500.0,0.00015068,2]
[334819020,1723603918567,-500.0,0.00015068,2]
[334819021,1723603918577,-578.58,0.00015068,2]
[334819022,1723603918587,-563.35,0.00015068,2]
[334819023,1723603918597,-1809.06,0.00015068,2]
[334819024,1723603918607,-1425.37,0.00015068,2]
[334819025,1723603918617,-500.0,0.00015068,2]
[334819026,1723603918626,-500.0,0.00015068,2]
[334819027,1723603918637,-511.30758286,0.00015068,2]
[334819028,1723603918647,-561.36,0.00015068,2]
[334819029,1723603918656,-2471.25,0.00015068,2]
[334819030,1723603918666,-1970.05,0.00015068,2]
[334819031,1723603918676,-500.0,0.00015068,2]
[334819032,1723603918687,-500.0,0.00015068,2]
[334819033,1723603918699,-500.0,0.00015068,2]
[334819034,1723603918713,-500.0,0.00015068,2]
[334819035,1723603918723,-500.0,0.00015068,2]
[334819036,1723603918734,-3890.5,0.00015068,2]
[334819037,1723603918745,-500.0,0.00015068,2]
[334819038,1723603918757,-500.0,0.00015068,2]
[334819039,1723603918766,-1901.09,0.00015068,2]
[334819040,1723603918777,-500.0,0.00015068,2]
[334819041,1723603918786,-2311.16,0.00015068,2]
[334819042,1723603918797,-500.0,0.00015068,2]
[334819043,1723603918809,-816.06,0.00015068,2]
[334819044,1723603918821,-500.0,0.00015068,2]
[334819045,1723603918833,-500.0,0.00015068,2]
[334819046,1723603918846,-506.49,0.00015068,2]
[334819047,1723603918856,-829.82,0.00015068,2]
[334819048,1723603918866,-3657.2,0.00015068,2]
[334819049,1723603918876,-500.0,0.00015068,2]
[334819050,1723603918886,-2053.68,0.00015068,2]
[334819051,1723603918898,-500.0,0.00015068,2]
[334819052,1723603918907,-500.0,0.00015068,2]
[334819053,1723603918917,-500.0,0.00015068,2]
[334819054,1723603918926,-500.0,0.00015068,2]
[334819055,1723603918936,-509.07703143,0.00015068,2]
[334819056,1723603918946,-500.0,0.00015068,2]
[334819057,1723603918958,-500.0,0.00015068,2]
[334819058,1723603918971,-500.0,0.00015068,2]
[334819059,1723603918982,-500.0,0.00015068,2]
[334819060,1723603918994,-718.17,0.00015068,2]
[334819061,1723603919004,-645.37,0.00015068,2]
[334819062,1723603919015,-1456.02,0.00015068,2]
[334819063,1723603919025,-2925.6,0.00015068,2]
[334819064,1723603919035,-500.0,0.00015068,2]
[334819065,1723603919046,-500.0,0.00015068,2]
[334819066,1723603919056,-500.0,0.00015068,2]
[334819067,1723603919066,-500.0,0.00015068,2]
[334819068,1723603919075,-813.54,0.00015068,2]
[334819069,1723603919085,-500.0,0.00015068,2]
[334819070,1723603919095,-500.0,0.00015068,2]
[334819071,1723603919104,-702.46,0.00015068,2]
[334819072,1723603919115,-500.0,0.00015068,2]
[334819073,1723603919125,-1871.96,0.00015068,2]
[334819074,1723603919135,-500.0,0.00015068,2]
[334819075,1723603919145,-2920.7,0.00015068,2]
[334819076,1723603919154,-1199.21,0.00015068,2]
[334819077,1723603919165,-839.44,0.00015068,2]
[334819078,1723603919175,-3062.35,0.00015068,2]
[334819079,1723603919184,-500.0,0.00015068,2]
[334819080,1723603919194,-1954.93,0.00015068,2]
[334819081,1723603919203,-523.74,0.00015068,2]
[334819082,1723603919213,-500.0,0.00015068,2]
[334819083,1723603919224,-500.0,0.00015068,2]
[334819084,1723603919234,-556.57,0.00015068,2]
[334819085,1723603919244,-500.0,0.00015068,2]
[334819086,1723603919253,-500.0,0.00015068,2]
[334819087,1723603919262,-686.81,0.00015068,2]
[334819088,1723603919273,-765.71,0.00015068,2]
[334819089,1723603919283,-500.0,0.00015068,2]
[334819090,1723603919293,-500.0,0.00015068,2]
[334819091,1723603919302,-1285.93,0.00015068,2]
[334819092,1723603919312,-1141.42,0.00015068,2]
[334819093,1723603919322,-500.0,0.00015068,2]
[334819094,1723603919331,-1795.87,0.00015068,2]
[334819095,1723603919341,-500.0,0.00015068,2]
[334819096,1723603919351,-510.77,0.00015068,2]
[334819097,1723603919360,-500.0,0.00015068,2]
[334819098,1723603919371,-862.78,0.00015068,2]
[334819099,1723603919381,-500.0,0.00015068,2]
[334819100,1723603919392,-500.0,0.00015068,2]
[334819101,1723603919402,-500.0,0.00015068,2]
[334819102,1723603919412,-500.0,0.00015068,2]
[334819103,1723603919422,-2686.07,0.00015068,2]
[334819104,1723603919432,-500.0,0.00015068,2]
[334819105,1723603919442,-614.38,0.00015068,2]
[334819106,1723603919452,-4160.62,0.00015068,2]
[334819107,1723603919463,-500.0,0.00015068,2]
[334819108,1723603919473,-667.7,0.00015068,2]
[334819109,1723603919483,-500.0,0.00015068,2]
[334819110,1723603919493,-500.0,0.00015068,2]
[334819111,1723603919503,-500.0,0.00015068,2]
[334819112,1723603919513,-500.0,0.00015068,2]
[334819113,1723603919523,-500.0,0.00015068,2]
[334819114,1723603919533,-1879.0,0.00015068,2]
[334819115,1723603919543,-746.14,0.00015068,2]
[334819116,1723603919553,-3343.86,0.00015068,2]
[334819117,1723603919563,-500.0,0.00015068,2]
[334819118,1723603919573,-500.0,0.00015068,2]
[334819119,1723603919582,-500.0,0.00015068,2]
[334819120,1723603919592,-500.0,0.00015068,2]
[334819121,1723603919602,-500.0,0.00015068,2]
[334819122,1723603919612,-500.0,0.00015068,2]
[334819123,1723603919621,-500.0,0.00015068,2]
[334819124,1723603919631,-500.0,0.00015068,2]
[334819125,1723603919642,-500.0,0.00015068,2]
[334819126,1723603919651,-500.0,0.00015068,2]
[334819127,1723603919662,-2290.46,0.00015068,2]
[334819128,1723603919672,-4072.54,0.00015068,2]
[334819129,1723603919682,-801.76,0.00015068,2]
[334819130,1723603919694,-500.0,0.00015068,2]
[334819131,1723603919704,-500.0,0.00015068,2]
[334819132,1723603919714,-626.44,0.00015068,2]
[334819133,1723603919727,-1509.4,0.00015068,2]
[334819134,1723603919736,-2014.71,0.00015068,2]
[334819135,1723603919746,-500.0,0.00015068,2]
[334819136,1723603919756,-500.0,0.00015068,2]
[334819137,1723603919766,-500.0,0.00015068,2]
[334819138,1723603919776,-500.0,0.00015068,2]
[334819139,1723603919785,-500.0,0.00015068,2]
[334819140,1723603919795,-1656.17,0.00015068,2]
[334819141,1723603919804,-3222.79,0.00015068,2]
[334819142,1723603919813,-1749.15,0.00015068,2]
[334819143,1723603919823,-500.0,0.00015068,2]
[334819144,1723603919832,-500.0,0.00015068,2]
[334819145,1723603919842,-500.0,0.00015068,2]
[334819146,1723603919852,-500.0,0.00015068,2]
[334819147,1723603919861,-706.26,0.00015068,2]
[334819148,1723603919871,-500.0,0.00015068,2]
[334819149,1723603919880,-1609.88,0.00015068,2]
[334819150,1723603919891,-500.0,0.00015068,2]
[334819151,1723603919902,-500.0,0.00015068,2]
[334819152,1723603919912,-5273.3,0.00015068,2]
[334819153,1723603919921,-2545.62,0.00015068,2]
[334819154,1723603919931,-568.81,0.00015068,2]
[334819155,1723603919940,-500.0,0.00015068,2]
[334819156,1723603919950,-500.0,0.00015068,2]
[334819157,1723603919961,-500.0,0.00015068,2]
[334819158,1723603919972,-615.8,0.00015068,2]
[334819159,1723603919982,-500.0,0.00015068,2]
[334819160,1723603919991,-3500.04,0.00015068,2]
[334819161,1723603920001,-500.0,0.00015068,2]
[334819162,1723603920012,-500.0,0.00015068,2]
[334819163,1723603920021,-500.0,0.00015068,2]
[334819164,1723603920031,-1877.03,0.00015068,2]
[334819165,1723603920043,-500.0,0.00015068,2]
[334819166,1723603920053,-1389.67,0.00015068,2]
[334819167,1723603920062,-500.0,0.00015068,2]
[334819168,1723603920072,-500.0,0.00015068,2]
[334819169,1723603920081,-505.57284197,0.00015068,2]
[334819170,1723603920091,-1434.03,0.00015068,2]
[334819171,1723603920100,-3154.71,0.00015068,2]
[334819172,1723603920110,-623.26,0.00015068,2]
[334819173,1723603920119,-523.16,0.00015068,2]
[334819174,1723603920129,-500.0,0.00015068,2]
[334819175,1723603920139,-500.0,0.00015068,2]
[334819176,1723603920150,-500.0,0.00015068,2]
[334819177,1723603920159,-500.0,0.00015068,2]
[334819178,1723603920169,-508.14181747,0.00015068,2]
[334819179,1723603920179,-500.0,0.00015068,2]
[334819180,1723603920190,-641.69,0.00015068,2]
[334819181,1723603920200,-500.0,0.00015068,2]
[334819182,1723603920210,-500.0,0.00015068,2]
[334819183,1723603920220,-500.0,0.00015068,2]
[334819184,1723603920230,-500.0,0.00015068,2]
[334819185,1723603920240,-908.77,0.00015068,2]
[334819186,1723603920250,-500.0,0.00015068,2]
[334819187,1723603920260,-500.0,0.00015068,2]
[334819188,1723603920270,-1000.0,0.00015068,2]
[334819189,1723603920280,-503.25834848,0.00015068,2]
[334819190,1723603920290,-502.31969548,0.00015068,2]
[334819191,1723603920299,-811.21,0.00015068,2]
[334819192,1723603920309,-500.0,0.00015068,2]
[334819193,1723603920319,-500.0,0.00015068,2]
[334819194,1723603920329,-500.0,0.00015068,2]
[334819195,1723603920339,-274.00776117,0.00015068,2]
[334819196,1723603920349,-577.33,0.00015068,2]
[334819197,1723603920359,-500.0,0.00015068,2]
[334819198,1723603920368,-500.0,0.00015068,2]
[334819199,1723603920378,-500.0,0.00015068,2]
[334819200,1723603920388,-1761.26,0.00015068,2]
[334819201,1723603920399,-1716.91,0.00015068,2]
[334819202,1723603920410,-527.5,0.00015068,2]
[334819203,1723603920420,-613.43,0.00015068,2]
[334819204,1723603920430,-1089.5,0.00015068,2]
[334819205,1723603920440,-500.0,0.00015068,2]
[334819206,1723603920450,-728.17,0.00015068,2]
[334819207,1723603920460,-500.0,0.00015068,2]
[334819208,1723603920471,-500.0,0.00015068,2]
[334819209,1723603920480,-500.0,0.00015068,2]
[334819210,1723603920490,-664.03,0.00015068,2]
[334819211,1723603920500,-500.0,0.00015068,2]
[334819212,1723603920510,-545.68,0.00015068,2]
[334819213,1723603920520,-500.0,0.00015068,2]
[334819214,1723603920530,-1090.52,0.00015068,2]
[334819215,1723603920539,-2011.47,0.00015068,2]
[334819216,1723603920549,-500.0,0.00015068,2]
[334819217,1723603920559,-550.26,0.00015068,2]
[334819218,1723603920569,-1554.81,0.00015068,2]
[334819219,1723603920579,-502.14,0.00015068,2]
[334819220,1723603920588,-563.85,0.00015068,2]
[334819221,1723603920598,-500.0,0.00015068,2]
[334819222,1723603920608,-921.71,0.00015068,2]
[334819223,1723603920619,-500.0,0.00015068,2]
[334819224,1723603920629,-823.6,0.00015068,2]
[334819225,1723603920640,-500.0,0.00015068,2]
[334819226,1723603920650,-610.78,0.00015068,2]
[334819227,1723603920660,-500.0,0.00015068,2]
[334819228,1723603920871,-1908.57,0.00015068,2]
[334819229,1723603920888,-511.56,0.00015068,2]
[334819230,1723603920900,-834.86,0.00015068,2]
[334819231,1723603920910,-500.0,0.00015068,2]
[334819232,1723603920920,-500.0,0.00015068,2]
[334819233,1723603920929,-500.0,0.00015068,2]
[334819234,1723603920938,-500.0,0.00015068,2]
[334819235,1723603920949,-500.0,0.00015068,2]
[334819236,1723603920959,-500.0,0.00015068,2]
[334819237,1723603920972,-626.84,0.00015068,2]
[334819238,1723603920982,-500.0,0.00015068,2]
[334819239,1723603920991,-1747.03,0.00015068,2]
[334819240,1723603921001,-500.0,0.00015068,2]
[334819241,1723603921012,-1408.06,0.00015068,2]
[334819242,1723603921022,-500.0,0.00015068,2]
[334819243,1723603921031,-754.97,0.00015068,2]
[334819244,1723603921042,-857.47,0.00015068,2]
[334819245,1723603921051,-500.0,0.00015068,2]
[334819246,1723603921060,-500.0,0.00015068,2]
[334819247,1723603921069,-500.0,0.00015068,2]
[334819248,1723603921078,-500.0,0.00015068,2]
[334819249,1723603921088,-1367.58,0.00015068,2]
[334819250,1723603921098,-681.21,0.00015068,2]
[334819251,1723603921107,-2349.72,0.00015068,2]
[334819252,1723603921116,-1319.2,0.00015068,2]
[334819253,1723603921125,-688.34,0.00015068,2]
[334819254,1723603921136,-500.0,0.00015068,2]
[334819255,1723603921146,-500.0,0.00015068,2]
[334819256,1723603921155,-695.72,0.00015068,2]
[334819257,1723603921164,-895.36,0.00015068,2]
[334819258,1723603921173,-500.0,0.00015068,2]
[334819259,1723603921183,-500.0,0.00015068,2]
[334819260,1723603921192,-683.22,0.00015068,2]
[334819261,1723603921201,-964.08,0.00015068,2]
[334819262,1723603921210,-500.0,0.00015068,2]
[334819263,1723603921219,-500.0,0.00015068,2]
[334819264,1723603921229,-500.0,0.00015068,2]
[334819265,1723603921238,-500.0,0.00015068,2]
[334819266,1723603921248,-500.0,0.00015068,2]
[334819267,1723603921257,-500.0,0.00015068,2]
[334819268,1723603921267,-1380.66,0.00015068,2]
[334819269,1723603921277,-500.0,0.00015068,2]
[334819270,1723603921286,-2027.17,0.00015068,2]
[334819271,1723603921297,-11342.33,0.00015068,2]
[334819272,1723603921307,-1367.54,0.00015068,2]
[334819273,1723603921317,-500.0,0.00015068,2]
[334819274,1723603921327,-500.0,0.00015068,2]
[334819275,1723603921336,-500.0,0.00015068,2]
[334819276,1723603921345,-500.0,0.00015068,2]
[334819277,1723603921355,-1444.2,0.00015068,2]
[334819278,1723603921364,-500.0,0.00015068,2]
[334819279,1723603921373,-500.0,0.00015068,2]
[334819280,1723603921382,-500.0,0.00015068,2]
[334819281,1723603921393,-4005.49,0.00015068,2]
[334819282,1723603921402,-500.0,0.00015068,2]
[334819283,1723603921412,-500.0,0.00015068,2]
[334819284,1723603921422,-8599.7,0.00015068,2]
[334819285,1723603921432,-500.0,0.00015068,2]
[334819286,1723603921441,-3471.08,0.00015068,2]
[334819287,1723603921451,-500.0,0.00015068,2]
[334819288,1723603921460,-500.0,0.00015068,2]
[334819289,1723603921470,-18529.58,0.00015068,2]
[334819290,1723603921479,-500.0,0.00015068,2]
[334819291,1723603921489,-1467.23,0.00015068,2]
[334819292,1723603921499,-500.0,0.00015068,2]
[334819293,1723603921508,-1447.84,0.00015068,2]
[334819294,1723603921518,-504.04986097,0.00015068,2]
[334819295,1723603921528,-500.0,0.00015068,2]
[334819296,1723603921537,-1090.94,0.00015068,2]
[334819297,1723603921547,-696.39,0.00015068,2]
[334819298,1723603921556,-3340.88,0.00015068,2]
[334819299,1723603921567,-500.0,0.00015068,2]
[334819300,1723603921577,-500.0,0.00015068,2]
[334819301,1723603921586,-500.0,0.00015068,2]
[334819302,1723603921596,-500.0,0.00015068,2]
[334819303,1723603921605,-500.0,0.00015068,2]
[334819304,1723603921615,-789.84,0.00015068,2]
[334819305,1723603921624,-500.0,0.00015068,2]
[334819306,1723603921634,-1932.0,0.00015068,2]
[334819307,1723603921645,-16984.73,0.00015068,2]
[334819308,1723603921654,-510.18169402,0.00015068,2]
[334819309,1723603921663,-1408.21,0.00015068,2]
[334819310,1723603921672,-500.0,0.00015068,2]
[334819311,1723603921681,-500.0,0.00015068,2]
[334819312,1723603921691,-500.0,0.00015068,2]
[334819313,1723603921700,-3491.45,0.00015068,2]
[334819314,1723603921709,-1212.188302,0.00015068,2]
[334819315,1723603921719,-615.57,0.00015068,2]
[334819316,1723603921730,-500.0,0.00015068,2]
[334819317,1723603921741,-4811.5,0.00015068,2]
[334819318,1723603921751,-1049.0,0.00015068,2]
[334819319,1723603921762,-1741.08,0.00015068,2]
[334819320,1723603921772,-3462.69,0.00015068,2]
[334819321,1723603921781,-1212.188312,0.00015068,2]
[334819322,1723603921791,-1076.68,0.00015068,2]
[334819323,1723603921800,-760.25,0.00015068,2]
[334819324,1723603921810,-547.29,0.00015068,2]
[334819325,1723603921819,-500.0,0.00015068,2]
[334819326,1723603921829,-500.0,0.00015068,2]
[334819327,1723603921838,-500.0,0.00015068,2]
[334819328,1723603921850,-1201.41,0.00015068,2]
[334819329,1723603921860,-9705.83,0.00015068,2]
[334819330,1723603921869,-500.0,0.00015068,2]
[334819331,1723603921878,-500.0,0.00015068,2]
[334819332,1723603921887,-500.0,0.00015068,2]
[334819333,1723603921896,-500.0,0.00015068,2]
[334819334,1723603921906,-500.0,0.00015068,2]
[334819335,1723603921915,-500.0,0.00015068,2]
[334819336,1723603921925,-682.35,0.00015068,2]
[334819337,1723603921935,-21824.02,0.00015068,2]
[334819338,1723603921944,-500.0,0.00015068,2]
[334819339,1723603921953,-964.16,0.00015068,2]
[334819340,1723603921966,-728.58,0.00015068,2]
[334819341,1723603921975,-2013.72,0.00015068,2]
[334819342,1723603921985,-1369.46,0.00015068,2]
[334819343,1723603921994,-832.56,0.00015068,2]
[334819344,1723603922003,-2899.28,0.00015068,2]
[334819345,1723603922013,-953.43,0.00015068,2]
[334819346,1723603922022,-4067.6,0.00015068,2]
[334819347,1723603922032,-1756.12,0.00015068,2]
[334819348,1723603922042,-500.0,0.00015068,2]
[334819349,1723603922051,-664.79,0.00015068,2]
[334819350,1723603922060,-500.0,0.00015068,2]
[334819351,1723603922070,-500.0,0.00015068,2]
[334819352,1723603922080,-658.27,0.00015068,2]
[334819353,1723603922091,-500.0,0.00015068,2]
[334819354,1723603922101,-767.26,0.00015068,2]
[334819355,1723603922112,-1097.99,0.00015068,2]
[334819356,1723603922121,-547.57,0.00015068,2]
[334819357,1723603922130,-1115.22,0.00015068,2]
[334819358,1723603922140,-1272.25,0.00015068,2]
[334819359,1723603922150,-500.0,0.00015068,2]
[334819360,1723603922159,-531.71,0.00015068,2]
[334819361,1723603922169,-723.33,0.00015068,2]
[334819362,1723603922178,-3348.83,0.00015068,2]
[334819363,1723603922187,-1223.52,0.00015068,2]
[334819364,1723603922196,-500.0,0.00015068,2]
[334819365,1723603922205,-2161.17,0.00015068,2]
[334819366,1723603922214,-500.0,0.00015068,2]
[334819367,1723603922223,-500.0,0.00015068,2]
[334819368,1723603922234,-6910.51,0.00015068,2]